[Event "Late-Titled-Tuesday-Blitz-August-29-2023"]
[Site "Chess.com"]
[Date "2023.08.29"]
[Round "11"]
[White "The_Princess_Moon"]
[Black "C_K_G"]
[Result "1-0"]
[WhiteElo "2215"]
[BlackElo "2015"]
[TimeControl "180+1"]
[EndTime "16:04:05 PDT"]
[Termination "The_Princess_Moon won on time"]

1. e4 {[%clk 0:03:00.9]} 1... c5 {[%clk 0:03:00]} 2. Nf3 {[%clk 0:03:00.1]} 2...
d6 {[%clk 0:03:00]} 3. c3 {[%clk 0:02:59.5]} 3... Nf6 {[%clk 0:02:59]} 4. h3
{[%clk 0:02:51.3]} 4... Nc6 {[%clk 0:02:58.7]} 5. Bd3 {[%clk 0:02:50.4]} 5... e6
{[%clk 0:02:56.3]} 6. Bc2 {[%clk 0:02:51.3]} 6... c4 {[%clk 0:02:55]} 7. b3
{[%clk 0:02:49.8]} 7... d5 {[%clk 0:02:44.9]} 8. exd5 {[%clk 0:02:39.9]} 8...
exd5 {[%clk 0:02:44]} 9. d4 {[%clk 0:02:37.4]} 9... Be7 {[%clk 0:02:37.5]} 10.
O-O {[%clk 0:02:36.6]} 10... cxb3 {[%clk 0:02:32.5]} 11. axb3 {[%clk 0:02:35.9]}
11... O-O {[%clk 0:02:31.8]} 12. Re1 {[%clk 0:02:35.5]} 12... h6 {[%clk
0:02:27.7]} 13. Qd3 {[%clk 0:02:18]} 13... Re8 {[%clk 0:02:13]} 14. Nbd2 {[%clk
0:02:12.7]} 14... Bf8 {[%clk 0:01:58.8]} 15. Ne5 {[%clk 0:02:05.7]} 15... Ne7
{[%clk 0:01:48.8]} 16. Qg3 {[%clk 0:01:37.7]} 16... Bf5 {[%clk 0:01:37.9]} 17.
Bxf5 {[%clk 0:01:31.2]} 17... Nxf5 {[%clk 0:01:37.4]} 18. Qf3 {[%clk 0:01:27.2]}
18... Nd6 {[%clk 0:01:28.8]} 19. Ba3 {[%clk 0:01:16]} 19... Nde4 {[%clk
0:01:25.9]} 20. Nxe4 {[%clk 0:01:14.2]} 20... dxe4 {[%clk 0:01:25.1]} 21. Qg3
{[%clk 0:01:05.8]} 21... Bxa3 {[%clk 0:01:21.7]} 22. Rxa3 {[%clk 0:01:05.2]}
22... a6 {[%clk 0:01:07]} 23. Qf4 {[%clk 0:00:54]} 23... Rc8 {[%clk 0:01:03.4]}
24. Re3 {[%clk 0:00:47.4]} 24... Qe7 {[%clk 0:00:47.9]} 25. Ra2 {[%clk
0:00:43.5]} 25... Nd5 {[%clk 0:00:47.3]} 26. Qxe4 {[%clk 0:00:39.4]} 26... Nxe3
{[%clk 0:00:44.2]} 27. Qxe3 {[%clk 0:00:38.3]} 27... f6 {[%clk 0:00:41]} 28. Nc4
{[%clk 0:00:34.7]} 28... b5 {[%clk 0:00:30.5]} 29. Qxe7 {[%clk 0:00:22.2]} 29...
Rxe7 {[%clk 0:00:29.5]} 30. Ne3 {[%clk 0:00:21.3]} 30... Rxc3 {[%clk 0:00:28.4]}
31. b4 {[%clk 0:00:17.7]} 31... Rd3 {[%clk 0:00:20.5]} 32. d5 {[%clk 0:00:17]}
32... Re4 {[%clk 0:00:19.2]} 33. Rxa6 {[%clk 0:00:15.6]} 33... Rxb4 {[%clk
0:00:18.6]} 34. Ra8+ {[%clk 0:00:13.9]} 34... Kh7 {[%clk 0:00:18.1]} 35. Rb8
{[%clk 0:00:14.8]} 35... Rb1+ {[%clk 0:00:16.9]} 36. Kh2 {[%clk 0:00:14.3]}
36... Rb2 {[%clk 0:00:17]} 37. Kg3 {[%clk 0:00:14.5]} 37... Rdd2 {[%clk
0:00:16.8]} 38. f3 {[%clk 0:00:10.8]} 38... f5 {[%clk 0:00:14.9]} 39. Nxf5
{[%clk 0:00:09.4]} 39... Rxg2+ {[%clk 0:00:14.2]} 40. Kf4 {[%clk 0:00:09.6]}
40... g5+ {[%clk 0:00:11.7]} 41. Ke5 {[%clk 0:00:09.4]} 41... Rge2+ {[%clk
0:00:11.2]} 42. Kf6 {[%clk 0:00:09.4]} 42... Rbc2 {[%clk 0:00:08.7]} 43. Rb7+
{[%clk 0:00:10.3]} 43... Kg8 {[%clk 0:00:08.1]} 44. Nxh6+ {[%clk 0:00:09.1]}
44... Kh8 {[%clk 0:00:03.7]} 45. Nf7+ {[%clk 0:00:09.4]} 45... Kg8 {[%clk
0:00:02.8]} 46. Nxg5 {[%clk 0:00:08.3]} 46... Rc8 {[%clk 0:00:01.6]} 47. Rg7+
{[%clk 0:00:08.2]} 1-0

[Event "Late-Titled-Tuesday-Blitz-August-29-2023"]
[Site "Chess.com"]
[Date "2023.08.29"]
[Round "11"]
[White "jamengrand"]
[Black "TheMagician"]
[Result "0-1"]
[WhiteElo "2345"]
[BlackElo "2183"]
[TimeControl "180+1"]
[EndTime "16:04:06 PDT"]
[Termination "TheMagician won on time"]

1. e4 {[%clk 0:03:00.9]} 1... e5 {[%clk 0:02:58.2]} 2. Nf3 {[%clk 0:02:57.9]}
2... Nc6 {[%clk 0:02:56.6]} 3. Bc4 {[%clk 0:02:57]} 3... Bc5 {[%clk 0:02:56.2]}
4. c3 {[%clk 0:02:55.4]} 4... Bb6 {[%clk 0:02:56]} 5. d3 {[%clk 0:02:49.3]} 5...
Nf6 {[%clk 0:02:46.9]} 6. Bb3 {[%clk 0:02:46.2]} 6... d6 {[%clk 0:02:37.5]} 7.
h3 {[%clk 0:02:44.9]} 7... Be6 {[%clk 0:02:37]} 8. Bc2 {[%clk 0:02:44.7]} 8...
d5 {[%clk 0:02:35.9]} 9. Qe2 {[%clk 0:02:44.2]} 9... h6 {[%clk 0:02:34.3]} 10.
Nbd2 {[%clk 0:02:42.6]} 10... d4 {[%clk 0:02:27.6]} 11. c4 {[%clk 0:02:37.9]}
11... Nb4 {[%clk 0:02:21.9]} 12. Bb1 {[%clk 0:02:37.8]} 12... Nc6 {[%clk
0:01:55.6]} 13. a3 {[%clk 0:02:30.1]} 13... a5 {[%clk 0:01:55.5]} 14. b3 {[%clk
0:02:27.2]} 14... Bc5 {[%clk 0:01:51.4]} 15. Bc2 {[%clk 0:02:19.5]} 15... Nd7
{[%clk 0:01:50.5]} 16. Rb1 {[%clk 0:02:17.1]} 16... Qe7 {[%clk 0:01:31.4]} 17.
Nf1 {[%clk 0:02:16.1]} 17... Bxa3 {[%clk 0:01:28.9]} 18. Ng3 {[%clk 0:02:11.1]}
18... Bxc1 {[%clk 0:01:25.9]} 19. Rxc1 {[%clk 0:02:09.3]} 19... g6 {[%clk
0:01:26]} 20. O-O {[%clk 0:02:07.5]} 20... Nb4 {[%clk 0:01:18.8]} 21. Bd1 {[%clk
0:02:05]} 21... Qd6 {[%clk 0:01:18.6]} 22. Ne1 {[%clk 0:02:01]} 22... Nc5 {[%clk
0:01:17.5]} 23. Kh1 {[%clk 0:01:42.4]} 23... g5 {[%clk 0:01:12]} 24. Rb1 {[%clk
0:01:21.4]} 24... O-O-O {[%clk 0:01:10.3]} 25. Qd2 {[%clk 0:01:18.5]} 25... b6
{[%clk 0:01:05.1]} 26. Bg4 {[%clk 0:01:16.8]} 26... Kb7 {[%clk 0:01:00.6]} 27.
f3 {[%clk 0:01:11.2]} 27... Qd7 {[%clk 0:00:53.6]} 28. Kg1 {[%clk 0:01:10.5]}
28... Rh7 {[%clk 0:00:52]} 29. Rb2 {[%clk 0:01:03.8]} 29... Rdh8 {[%clk
0:00:51]} 30. Bf5 {[%clk 0:00:58.6]} 30... Rg7 {[%clk 0:00:45.9]} 31. Bg4 {[%clk
0:00:58.7]} 31... f6 {[%clk 0:00:41]} 32. Nh5 {[%clk 0:00:57]} 32... Rf7 {[%clk
0:00:39.8]} 33. Rf2 {[%clk 0:00:55.8]} 33... Rff8 {[%clk 0:00:33.6]} 34. Rf1
{[%clk 0:00:50.7]} 34... Qe8 {[%clk 0:00:33.7]} 35. Rf2 {[%clk 0:00:48.2]} 35...
Qe7 {[%clk 0:00:31.6]} 36. Rf1 {[%clk 0:00:46.6]} 36... Bf7 {[%clk 0:00:31.9]}
37. Rf2 {[%clk 0:00:29.9]} 37... Bg6 {[%clk 0:00:30.5]} 38. Ng3 {[%clk
0:00:27.7]} 38... h5 {[%clk 0:00:30.3]} 39. Bf5 {[%clk 0:00:28]} 39... Be8
{[%clk 0:00:27.3]} 40. Rf1 {[%clk 0:00:27.4]} 40... h4 {[%clk 0:00:27.7]} 41.
Ne2 {[%clk 0:00:25.1]} 41... Bd7 {[%clk 0:00:27.5]} 42. Bxd7 {[%clk 0:00:22.2]}
42... Qxd7 {[%clk 0:00:27]} 43. Nc1 {[%clk 0:00:22.3]} 43... Ne6 {[%clk
0:00:25.2]} 44. Nc2 {[%clk 0:00:22]} 44... Qd6 {[%clk 0:00:25.4]} 45. Nxb4
{[%clk 0:00:22.1]} 45... Qxb4 {[%clk 0:00:25.6]} 46. Qxb4 {[%clk 0:00:20.4]}
46... axb4 {[%clk 0:00:25.8]} 47. Ra2 {[%clk 0:00:20.8]} 47... Ra8 {[%clk
0:00:25.5]} 48. Rff2 {[%clk 0:00:21.3]} 48... Nc5 {[%clk 0:00:22.6]} 49. Rfc2
{[%clk 0:00:18.6]} 49... Ra5 {[%clk 0:00:22.2]} 50. Kf2 {[%clk 0:00:18.3]} 50...
Rha8 {[%clk 0:00:21.5]} 51. Rxa5 {[%clk 0:00:16.2]} 51... Rxa5 {[%clk
0:00:21.5]} 52. Ke2 {[%clk 0:00:16.1]} 52... Ra1 {[%clk 0:00:20.7]} 53. Kd2
{[%clk 0:00:15.9]} 53... Rb1 {[%clk 0:00:20.8]} 54. Kd1 {[%clk 0:00:03.9]} 54...
Nxb3 {[%clk 0:00:20.6]} 0-1

[Event "Late-Titled-Tuesday-Blitz-August-29-2023"]
[Site "Chess.com"]
[Date "2023.08.29"]
[Round "11"]
[White "MYMChessAcademy"]
[Black "Laico"]
[Result "0-1"]
[WhiteElo "2223"]
[BlackElo "2381"]
[TimeControl "180+1"]
[EndTime "16:04:12 PDT"]
[Termination "Laico won by checkmate"]

1. e4 {[%clk 0:03:00.9]} 1... e6 {[%clk 0:02:58.2]} 2. d4 {[%clk 0:03:00.5]}
2... d5 {[%clk 0:02:59.1]} 3. e5 {[%clk 0:03:01.1]} 3... c5 {[%clk 0:02:59.1]}
4. c3 {[%clk 0:03:01.7]} 4... Nc6 {[%clk 0:02:59.7]} 5. Nf3 {[%clk 0:03:02.1]}
5... Bd7 {[%clk 0:03:00.3]} 6. Bd3 {[%clk 0:02:56.9]} 6... Qb6 {[%clk
0:03:00.6]} 7. Bc2 {[%clk 0:02:47.5]} 7... Qa6 {[%clk 0:03:00.5]} 8. Bd3 {[%clk
0:02:46.5]} 8... Qb6 {[%clk 0:03:01]} 9. Bc2 {[%clk 0:02:46.9]} 9... Nge7 {[%clk
0:03:01.1]} 10. a3 {[%clk 0:02:46.8]} 10... cxd4 {[%clk 0:02:55.5]} 11. cxd4
{[%clk 0:02:47.7]} 11... Rc8 {[%clk 0:02:54.7]} 12. b4 {[%clk 0:02:46.6]} 12...
Nf5 {[%clk 0:02:54.9]} 13. Bxf5 {[%clk 0:02:43.5]} 13... exf5 {[%clk 0:02:55.8]}
14. O-O {[%clk 0:02:40.7]} 14... Be7 {[%clk 0:02:54.9]} 15. Qe2 {[%clk
0:02:35.6]} 15... O-O {[%clk 0:02:54.1]} 16. Be3 {[%clk 0:02:34.1]} 16... a5
{[%clk 0:02:51.1]} 17. b5 {[%clk 0:02:33.4]} 17... Na7 {[%clk 0:02:49.8]} 18. a4
{[%clk 0:02:33.6]} 18... Bb4 {[%clk 0:02:48.1]} 19. Bd2 {[%clk 0:02:11.7]} 19...
Rc2 {[%clk 0:02:47.1]} 20. Qd3 {[%clk 0:02:02.3]} 20... Rfc8 {[%clk 0:02:46.6]}
21. Na3 {[%clk 0:01:58.2]} 21... R2c3 {[%clk 0:02:36.9]} 22. Bxc3 {[%clk
0:01:31.2]} 22... Rxc3 {[%clk 0:02:37.8]} 23. Qe2 {[%clk 0:01:19.8]} 23... Rxa3
{[%clk 0:02:34.8]} 24. Ng5 {[%clk 0:01:14.3]} 24... Rxa1 {[%clk 0:02:24.3]} 25.
Rxa1 {[%clk 0:01:11.1]} 25... Qxd4 {[%clk 0:02:24.9]} 26. Rd1 {[%clk 0:01:07.3]}
26... Qg4 {[%clk 0:02:23.8]} 27. Qxg4 {[%clk 0:01:02.5]} 27... fxg4 {[%clk
0:02:23.4]} 28. Rxd5 {[%clk 0:01:02.7]} 28... Be8 {[%clk 0:01:37.8]} 29. Rd8
{[%clk 0:00:53.2]} 29... Kf8 {[%clk 0:01:36.9]} 30. Rb8 {[%clk 0:00:41.2]} 30...
Bc5 {[%clk 0:01:21.1]} 31. Rxb7 {[%clk 0:00:39.3]} 31... h6 {[%clk 0:01:12.2]}
32. Ne4 {[%clk 0:00:38.2]} 32... Bd4 {[%clk 0:01:11.5]} 33. Nd6 {[%clk 0:00:36]}
33... Nc8 {[%clk 0:00:28.8]} 34. Nxc8 {[%clk 0:00:23.5]} 34... Bxe5 {[%clk
0:00:28.9]} 35. Nb6 {[%clk 0:00:18.5]} 35... h5 {[%clk 0:00:20.4]} 36. Nc4
{[%clk 0:00:18.5]} 36... Bd4 {[%clk 0:00:19.6]} 37. Nxa5 {[%clk 0:00:18]} 37...
h4 {[%clk 0:00:19]} 38. g3 {[%clk 0:00:14.6]} 38... f5 {[%clk 0:00:17.4]} 39.
Nc6 {[%clk 0:00:14.4]} 39... Bc5 {[%clk 0:00:16.9]} 40. a5 {[%clk 0:00:13.4]}
40... f4 {[%clk 0:00:17.4]} 41. gxf4 {[%clk 0:00:11.9]} 41... g3 {[%clk
0:00:17.6]} 42. hxg3 {[%clk 0:00:08.8]} 42... hxg3 {[%clk 0:00:18.5]} 43. a6
{[%clk 0:00:08.6]} 43... gxf2+ {[%clk 0:00:13.7]} 44. Kf1 {[%clk 0:00:08.3]}
44... Bg6 {[%clk 0:00:11.6]} 45. Rd7 {[%clk 0:00:08.5]} 45... Bf5 {[%clk
0:00:11.9]} 46. Rd5 {[%clk 0:00:07.9]} 46... Bh3+ {[%clk 0:00:11.8]} 47. Ke2
{[%clk 0:00:08.3]} 47... f1=Q+ {[%clk 0:00:12.6]} 48. Kd2 {[%clk 0:00:08.4]}
48... Qxf4+ {[%clk 0:00:11.8]} 49. Kc2 {[%clk 0:00:08.2]} 49... Qc4+ {[%clk
0:00:11.7]} 50. Kb2 {[%clk 0:00:08.6]} 50... Qxd5 {[%clk 0:00:11.8]} 51. a7
{[%clk 0:00:09]} 51... Bxa7 {[%clk 0:00:11]} 52. Nxa7 {[%clk 0:00:09.9]} 52...
Qb7 {[%clk 0:00:11.1]} 53. Kb3 {[%clk 0:00:10.8]} 53... Qxa7 {[%clk 0:00:10.9]}
54. Kb4 {[%clk 0:00:11.3]} 54... Bd7 {[%clk 0:00:09.7]} 55. b6 {[%clk
0:00:12.2]} 55... Qxb6+ {[%clk 0:00:09.4]} 56. Kc4 {[%clk 0:00:12.7]} 56... Qf6
{[%clk 0:00:09.2]} 57. Kd3 {[%clk 0:00:12.8]} 57... g5 {[%clk 0:00:09.8]} 58.
Kc2 {[%clk 0:00:13.7]} 58... g4 {[%clk 0:00:10.4]} 59. Kd2 {[%clk 0:00:14.6]}
59... g3 {[%clk 0:00:11]} 60. Kc2 {[%clk 0:00:15.5]} 60... g2 {[%clk 0:00:11.3]}
61. Kd2 {[%clk 0:00:16.4]} 61... g1=Q {[%clk 0:00:11.7]} 62. Kc2 {[%clk
0:00:17.3]} 62... Be8 {[%clk 0:00:10.6]} 63. Kd2 {[%clk 0:00:18.2]} 63... Qgd4+
{[%clk 0:00:09.7]} 64. Kc2 {[%clk 0:00:19.1]} 64... Qc6+ {[%clk 0:00:08.3]} 65.
Kb1 {[%clk 0:00:18.7]} 65... Qdb6+ {[%clk 0:00:07.4]} 66. Ka1 {[%clk 0:00:19.6]}
66... Qc1+ {[%clk 0:00:05.1]} 67. Ka2 {[%clk 0:00:19.9]} 67... Bf7# {[%clk
0:00:04.5]} 0-1

[Event "Late-Titled-Tuesday-Blitz-August-29-2023"]
[Site "Chess.com"]
[Date "2023.08.29"]
[Round "11"]
[White "psychokiller48"]
[Black "CrushingKings"]
[Result "1-0"]
[WhiteElo "2682"]
[BlackElo "2571"]
[TimeControl "180+1"]
[EndTime "16:04:16 PDT"]
[Termination "psychokiller48 won by resignation"]

1. e4 {[%clk 0:02:59.2]} 1... g6 {[%clk 0:02:26.3]} 2. d4 {[%clk 0:02:57.5]}
2... Bg7 {[%clk 0:02:27.2]} 3. h4 {[%clk 0:02:56.9]} 3... c6 {[%clk 0:02:28.1]}
4. h5 {[%clk 0:02:57.1]} 4... d5 {[%clk 0:02:29]} 5. e5 {[%clk 0:02:57.4]} 5...
c5 {[%clk 0:02:26.2]} 6. c3 {[%clk 0:02:57.1]} 6... cxd4 {[%clk 0:02:26]} 7.
cxd4 {[%clk 0:02:58]} 7... Nc6 {[%clk 0:02:26.4]} 8. Nc3 {[%clk 0:02:58.6]} 8...
e6 {[%clk 0:02:13.4]} 9. Nf3 {[%clk 0:02:57.3]} 9... Bd7 {[%clk 0:02:13.4]} 10.
a3 {[%clk 0:02:54]} 10... a6 {[%clk 0:02:12.8]} 11. Be3 {[%clk 0:02:47.1]} 11...
Nge7 {[%clk 0:02:08]} 12. h6 {[%clk 0:02:47]} 12... Bf8 {[%clk 0:02:07.6]} 13.
Bg5 {[%clk 0:02:47.7]} 13... Qb6 {[%clk 0:01:57.3]} 14. Na4 {[%clk 0:02:47.6]}
14... Qa7 {[%clk 0:01:55.8]} 15. Bf6 {[%clk 0:02:44.9]} 15... Rg8 {[%clk
0:01:55.4]} 16. g4 {[%clk 0:02:32.7]} 16... g5 {[%clk 0:01:21.8]} 17. Nc5 {[%clk
0:02:20.1]} 17... Rg6 {[%clk 0:01:15.5]} 18. Bxg5 {[%clk 0:01:52]} 18... Ng8
{[%clk 0:01:07.2]} 19. Nxd7 {[%clk 0:01:40.7]} 19... Kxd7 {[%clk 0:01:08.1]} 20.
Qd2 {[%clk 0:01:39.5]} 20... Bxh6 {[%clk 0:00:53.3]} 21. Bxh6 {[%clk 0:01:35.8]}
21... Nxh6 {[%clk 0:00:45.8]} 22. Rxh6 {[%clk 0:01:27.7]} 22... Nxd4 {[%clk
0:00:45.9]} 23. Nxd4 {[%clk 0:01:11.4]} 23... Rxh6 {[%clk 0:00:45.2]} 24. Qxh6
{[%clk 0:00:50.4]} 24... Qxd4 {[%clk 0:00:45.3]} 25. Qd2 {[%clk 0:00:50]} 25...
Qxe5+ {[%clk 0:00:45.1]} 26. Qe2 {[%clk 0:00:50.7]} 26... Qf4 {[%clk 0:00:39.2]}
27. Qe3 {[%clk 0:00:42.4]} 27... Qxg4 {[%clk 0:00:30]} 28. Rc1 {[%clk
0:00:42.2]} 28... Rc8 {[%clk 0:00:24.3]} 29. Rxc8 {[%clk 0:00:37.1]} 29... Kxc8
{[%clk 0:00:25.2]} 30. Bd3 {[%clk 0:00:33.7]} 30... h5 {[%clk 0:00:11.8]} 31.
Qc5+ {[%clk 0:00:32.9]} 31... Kd7 {[%clk 0:00:10.5]} 32. Qb6 {[%clk 0:00:29.7]}
32... Qg1+ {[%clk 0:00:09.1]} 33. Kd2 {[%clk 0:00:25.2]} 33... Qg5+ {[%clk
0:00:09.2]} 34. Kc2 {[%clk 0:00:24.9]} 34... Kc8 {[%clk 0:00:06.7]} 35. Qd6
{[%clk 0:00:21.9]} 35... Qf6 {[%clk 0:00:06.9]} 36. f4 {[%clk 0:00:17]} 36... h4
{[%clk 0:00:06.6]} 37. Qe5 {[%clk 0:00:16.7]} 37... Qh6 {[%clk 0:00:03.1]} 38.
Qg5 {[%clk 0:00:16.8]} 38... Qxg5 {[%clk 0:00:02.5]} 39. fxg5 {[%clk 0:00:17.7]}
39... h3 {[%clk 0:00:03]} 40. Bf1 {[%clk 0:00:18.1]} 40... h2 {[%clk 0:00:02.7]}
41. Bg2 {[%clk 0:00:18.7]} 41... Kd7 {[%clk 0:00:03.3]} 42. Kd3 {[%clk 0:00:19]}
42... Kd6 {[%clk 0:00:03.7]} 43. Kd4 {[%clk 0:00:15.5]} 43... e5+ {[%clk
0:00:04.3]} 44. Ke3 {[%clk 0:00:16.2]} 44... Ke6 {[%clk 0:00:03.3]} 45. Bh3+
{[%clk 0:00:15.5]} 45... Kd6 {[%clk 0:00:03]} 46. Bg2 {[%clk 0:00:16.1]} 46...
e4 {[%clk 0:00:02.8]} 47. Kf4 {[%clk 0:00:16]} 47... Kc5 {[%clk 0:00:03.1]} 48.
Kg3 {[%clk 0:00:13.9]} 48... Kd4 {[%clk 0:00:02.9]} 49. Kxh2 {[%clk 0:00:14.4]}
49... Ke3 {[%clk 0:00:03.4]} 50. Kg1 {[%clk 0:00:13.5]} 50... d4 {[%clk
0:00:02.7]} 51. Kf1 {[%clk 0:00:14]} 51... Kf4 {[%clk 0:00:02.6]} 52. Ke2 {[%clk
0:00:13.8]} 52... e3 {[%clk 0:00:01.6]} 53. Kd3 {[%clk 0:00:12.6]} 53... Kg3
{[%clk 0:00:02.3]} 54. Bf1 {[%clk 0:00:09.7]} 54... Kf2 {[%clk 0:00:02.8]} 55.
Be2 {[%clk 0:00:10.3]} 55... Ke1 {[%clk 0:00:03]} 56. Bh5 {[%clk 0:00:10.6]}
56... Kf2 {[%clk 0:00:03.3]} 57. b4 {[%clk 0:00:09.7]} 57... b6 {[%clk
0:00:03.2]} 58. a4 {[%clk 0:00:10.2]} 58... a5 {[%clk 0:00:01.8]} 59. b5 {[%clk
0:00:10.8]} 59... Ke1 {[%clk 0:00:02]} 60. Bxf7 {[%clk 0:00:10.7]} 60... Kf1
{[%clk 0:00:02.1]} 61. Bh5 {[%clk 0:00:11.4]} 61... Kf2 {[%clk 0:00:02.7]} 62.
g6 {[%clk 0:00:11.6]} 1-0

[Event "Late-Titled-Tuesday-Blitz-August-29-2023"]
[Site "Chess.com"]
[Date "2023.08.29"]
[Round "11"]
[White "ckgchess"]
[Black "jinbojinbo"]
[Result "0-1"]
[WhiteElo "2868"]
[BlackElo "2692"]
[TimeControl "180+1"]
[EndTime "16:05:21 PDT"]
[Termination "jinbojinbo won by resignation"]

1. e4 {[%clk 0:02:57.7]} 1... c5 {[%clk 0:02:59.9]} 2. c3 {[%clk 0:02:58.2]}
2... d5 {[%clk 0:02:58.4]} 3. exd5 {[%clk 0:02:59.1]} 3... Qxd5 {[%clk
0:02:59.2]} 4. d4 {[%clk 0:02:59.9]} 4... Nc6 {[%clk 0:02:59.5]} 5. Nf3 {[%clk
0:03:00.7]} 5... Nf6 {[%clk 0:02:59.4]} 6. Na3 {[%clk 0:03:00.8]} 6... e6 {[%clk
0:02:51.9]} 7. Nb5 {[%clk 0:03:00.8]} 7... Qd8 {[%clk 0:02:51.6]} 8. dxc5 {[%clk
0:03:01.3]} 8... Bxc5 {[%clk 0:02:44.4]} 9. Qxd8+ {[%clk 0:03:01.2]} 9... Kxd8
{[%clk 0:02:45.3]} 10. Bf4 {[%clk 0:03:01.8]} 10... Nd5 {[%clk 0:02:39.1]} 11.
O-O-O {[%clk 0:03:01.6]} 11... Bd7 {[%clk 0:02:34.4]} 12. Bg3 {[%clk 0:02:57.7]}
12... Ke7 {[%clk 0:02:11.4]} 13. Bc4 {[%clk 0:02:54.4]} 13... a6 {[%clk
0:02:07.7]} 14. Nbd4 {[%clk 0:02:36.2]} 14... Nxd4 {[%clk 0:01:47.9]} 15. Nxd4
{[%clk 0:02:37.1]} 15... Nb6 {[%clk 0:01:36]} 16. Bb3 {[%clk 0:02:36]} 16...
Rac8 {[%clk 0:01:33]} 17. Rhe1 {[%clk 0:02:34.9]} 17... Rhd8 {[%clk 0:01:25.8]}
18. Bh4+ {[%clk 0:02:33.2]} 18... f6 {[%clk 0:01:20.9]} 19. Bxe6 {[%clk
0:02:10.4]} 19... Bxe6 {[%clk 0:01:12.7]} 20. Nxe6 {[%clk 0:02:08.8]} 20...
Rxd1+ {[%clk 0:01:12.7]} 21. Kxd1 {[%clk 0:02:09.7]} 21... Kf7 {[%clk
0:01:12.6]} 22. Nxc5 {[%clk 0:02:02.6]} 22... Rxc5 {[%clk 0:01:13.5]} 23. f3
{[%clk 0:01:56.7]} 23... Ra5 {[%clk 0:01:06.3]} 24. a3 {[%clk 0:01:50.1]} 24...
Nc4 {[%clk 0:01:05.3]} 25. Kc2 {[%clk 0:01:43.6]} 25... Rb5 {[%clk 0:01:04.8]}
26. b4 {[%clk 0:01:29.6]} 26... Rh5 {[%clk 0:01:03.5]} 27. Bg3 {[%clk
0:01:25.5]} 27... Rd5 {[%clk 0:00:50.1]} 28. Re2 {[%clk 0:00:58.7]} 28... b5
{[%clk 0:00:29.6]} 29. Kb3 {[%clk 0:00:47.4]} 29... Nd2+ {[%clk 0:00:28.8]} 30.
Ka2 {[%clk 0:00:42.1]} 30... Nc4 {[%clk 0:00:27.7]} 31. Bf4 {[%clk 0:00:35]}
31... g5 {[%clk 0:00:23]} 32. Bc1 {[%clk 0:00:35.2]} 32... Rd1 {[%clk
0:00:22.5]} 33. Rc2 {[%clk 0:00:35.8]} 33... h5 {[%clk 0:00:20]} 34. Kb3 {[%clk
0:00:36.3]} 34... Nb6 {[%clk 0:00:15.8]} 35. Be3 {[%clk 0:00:32.1]} 35... Nc4
{[%clk 0:00:15.7]} 36. Bd4 {[%clk 0:00:21.3]} 36... Nd2+ {[%clk 0:00:09.3]} 37.
Ka2 {[%clk 0:00:21.1]} 37... Nc4 {[%clk 0:00:06.1]} 38. Kb3 {[%clk 0:00:21.8]}
38... Nd2+ {[%clk 0:00:06.2]} 39. Ka2 {[%clk 0:00:22.6]} 39... Nc4 {[%clk
0:00:05.1]} 40. Re2 {[%clk 0:00:23.2]} 40... h4 {[%clk 0:00:04.5]} 41. Kb3
{[%clk 0:00:23.6]} 41... Rb1+ {[%clk 0:00:03.3]} 42. Ka2 {[%clk 0:00:21.8]}
42... Rd1 {[%clk 0:00:04]} 43. Bc5 {[%clk 0:00:17.9]} 43... Rd3 {[%clk
0:00:02.7]} 44. Kb3 {[%clk 0:00:14.6]} 44... Rd1 {[%clk 0:00:02.7]} 45. a4
{[%clk 0:00:13.4]} 45... Rb1+ {[%clk 0:00:02.2]} 46. Ka2 {[%clk 0:00:13.5]}
46... Rc1 {[%clk 0:00:02.6]} 47. axb5 {[%clk 0:00:13.6]} 47... axb5 {[%clk
0:00:03.5]} 48. Bd4 {[%clk 0:00:11.2]} 48... Rd1 {[%clk 0:00:03.5]} 49. Kb3
{[%clk 0:00:10.5]} 49... Rb1+ {[%clk 0:00:03.8]} 50. Ka2 {[%clk 0:00:08.6]}
50... Rd1 {[%clk 0:00:03.9]} 51. Bc5 {[%clk 0:00:07.7]} 51... Rc1 {[%clk
0:00:03.9]} 52. Kb3 {[%clk 0:00:07.4]} 52... Rb1+ {[%clk 0:00:04.1]} 53. Kc2
{[%clk 0:00:07.5]} 53... Rb2+ {[%clk 0:00:04.4]} 54. Kd3 {[%clk 0:00:08.2]}
54... Rb1 {[%clk 0:00:04.9]} 55. Re7+ {[%clk 0:00:07.2]} 55... Kg6 {[%clk
0:00:04.8]} 56. Bd4 {[%clk 0:00:07.3]} 56... Rd1+ {[%clk 0:00:05]} 57. Kc2
{[%clk 0:00:06.6]} 57... Rd2+ {[%clk 0:00:05.2]} 58. Kc1 {[%clk 0:00:07.3]}
58... Rxg2 {[%clk 0:00:05.6]} 59. Re6 {[%clk 0:00:08]} 59... Rxh2 {[%clk
0:00:05.7]} 60. Rxf6+ {[%clk 0:00:08.7]} 60... Kh5 {[%clk 0:00:06]} 61. Rf5
{[%clk 0:00:08.6]} 61... h3 {[%clk 0:00:06.2]} 62. f4 {[%clk 0:00:08.5]} 62...
Rh1+ {[%clk 0:00:06.5]} 63. Kc2 {[%clk 0:00:08.3]} 63... Kg4 {[%clk 0:00:06.9]}
64. Rxg5+ {[%clk 0:00:05.6]} 64... Kxf4 {[%clk 0:00:07.3]} 65. Rh5 {[%clk
0:00:05.6]} 65... h2 {[%clk 0:00:07.3]} 66. Ba7 {[%clk 0:00:06]} 66... Kg4
{[%clk 0:00:06.7]} 67. Rh8 {[%clk 0:00:03.2]} 67... Ra1 {[%clk 0:00:07.3]} 68.
Rg8+ {[%clk 0:00:03.5]} 68... Kf5 {[%clk 0:00:06.9]} 69. Rf8+ {[%clk 0:00:04.2]}
69... Ke6 {[%clk 0:00:07.1]} 70. Re8+ {[%clk 0:00:04.8]} 70... Kf7 {[%clk
0:00:07.4]} 71. Rh8 {[%clk 0:00:05.7]} 71... h1=Q {[%clk 0:00:07.7]} 72. Rxh1
{[%clk 0:00:06.2]} 72... Rxh1 {[%clk 0:00:08.4]} 73. Kd3 {[%clk 0:00:07.1]}
73... Rh3+ {[%clk 0:00:09]} 74. Kd4 {[%clk 0:00:07.7]} 74... Ke6 {[%clk
0:00:09.5]} 75. Kc5 {[%clk 0:00:08.3]} 75... Rh5+ {[%clk 0:00:10.4]} 76. Kc6
{[%clk 0:00:08.4]} 76... Rf5 {[%clk 0:00:10.5]} 77. Bd4 {[%clk 0:00:09.3]} 77...
Nd2 {[%clk 0:00:10.5]} 78. Be3 {[%clk 0:00:09.5]} 78... Nc4 {[%clk 0:00:10.6]}
79. Bd4 {[%clk 0:00:10.4]} 79... Rd5 {[%clk 0:00:10.7]} 80. Bg1 {[%clk
0:00:09.8]} 80... Rh5 {[%clk 0:00:11.3]} 81. Bc5 {[%clk 0:00:10.4]} 81... Na3
{[%clk 0:00:11]} 82. Bd4 {[%clk 0:00:09.3]} 82... Kf5 {[%clk 0:00:11.2]} 83. Kd5
{[%clk 0:00:09.2]} 83... Kf4+ {[%clk 0:00:11.4]} 84. Kc6 {[%clk 0:00:09.9]}
84... Ke4 {[%clk 0:00:11.7]} 85. Bf6 {[%clk 0:00:09]} 85... Kd3 {[%clk
0:00:11.9]} 86. Kb6 {[%clk 0:00:09.3]} 86... Kc4 {[%clk 0:00:12.2]} 87. Kc6
{[%clk 0:00:09.7]} 87... Nb1 {[%clk 0:00:12.8]} 0-1